[Event "Icelandic Championship 2024"]
[Site "Mosfellsbaer"]
[Date "2024.04.24"]
[Round "8.2"]
[White "Domalchuk-Jonasson, Aleksandr"]
[Black "Stefansson, Hannes"]
[Result "1/2-1/2"]
[ECO "B13"]
[WhiteElo "2368"]
[BlackElo "2493"]
[Annotator "TA"]
[PlyCount "110"]
[EventDate "2024.04.16"]
[EventType "tourn"]
[EventCountry "ISL"]
[SourceTitle "playchess.com"]
[Source "ChessBase"]
[SourceQuality "1"]
[TimeControl "40/5400+30:1800+30"]

{[%evp 39,109,-17,-35,-55,12,-72,-59,-67,-76,-85,-91,-102,-97,-124,-122,-127,-131,-136,-142,-239,-231,-326,-306,-297,-118,-114,-113,-112,-116,-130,-112,-116,-118,-113,-99,-85,-76,-257,-257,-239,-233,-243,-243,-200,0,0,0,0,0,0,0,0,0,0,0,0,0,0,0,0,0,0,0,0,0,0,0,0,0,0,0,0]} 1. e4 {[%emt 0:00:04]} c6 {[%emt 0:00:44]} 2. d4 {[%emt 0:00:11]} d5 {[%emt 0:00:19]} 3. exd5 {[%emt 0:00:07]} cxd5 {[%emt 0:00:27]} 4. Bd3 {[%emt 0:00:04]} Nc6 {[%emt 0:01:02]} 5. c3 {[%emt 0:00:09]} e6 {[%emt 0:00:43]} 6. Bf4 {[%emt 0:01:27] B13: Caro-Kann: Exchange Variation and Panov-Botvinnik Attack.} Bd6 {[%emt 0:00:56]} 7. Bxd6 {[%emt 0:02:20]} Qxd6 {[%emt 0:00:42]} 8. Nf3 {[%emt 0:00:06]} Nge7 {[%emt 0:00:49]} 9. O-O {[%emt 0:00:19]} O-O {[%emt 0:03:08]} 10. Nbd2 {[%emt 0:03:30]} Rd8 $146 {[%emt 0:17:24]} ({Predecessor:} 10... Bd7 11. Re1 f6 12. c4 Rad8 13. a3 dxc4 14. Nxc4 Qf4 15. Re4 Qb8 16. Rh4 Nf5 17. Bxf5 exf5 {1-0 Abdurakhmanov,M (2409)-Dardha,D (2598) Wch Rapid Samarkand 2023 (1)}) 11. b4 {[%emt 0:04:11]} Ng6 {[%emt 0:04:38]} 12. Re1 {[%emt 0:06:23]} Bd7 {[%emt 0:01:49]} 13. a4 {[%emt 0:01:00]} Be8 {[%emt 0:02:30]} 14. a5 {[%emt 0:03:33]} Nce7 {[%emt 0:03:46]} 15. Qb3 {[%emt 0:13:24]} Rac8 {[%emt 0:02:14]} 16. g3 {[%emt 0:02:48]} Rc7 {[%emt 0:03:12]} 17. Qb2 {[%emt 0:06:59]} Rdc8 {[%emt 0:00:41]} 18. Nb3 {[%emt 0:00:56]} Qd8 {[%emt 0:03:07]} 19. Rec1 {[%emt 0:05:17]} Nf5 {[%emt 0:00:58]} 20. Nc5 {[%emt 0:02:39]} Nd6 {[%emt 0:00:38]} 21. Ne5 {[%emt 0:13:29]} Bb5 {[%emt 0:01:22]} (21... b6 $15 22. Nxg6 hxg6) 22. Qe2 {[%emt 0:03:38]} (22. a6 $1 $11 {keeps the balance.} bxa6 23. Rd1) 22... Qe8 {[%emt 0:01:59]} 23. Bxb5 {[%emt 0:05:43]} Qxb5 {[%emt 0:01:15]} 24. Kf1 {[%emt 0:07:54]} b6 {[%emt 0:08:59]} 25. axb6 {[%emt 0:00:15]} axb6 {[%emt 0:00:12]} 26. Qxb5 {[%emt 0:07:22]} Nxb5 {[%emt 0:00:06]} 27. Na4 {[%emt 0:02:55]} Nxe5 {[%emt 0:01:37]} (27... Nxc3 $2 28. Rxc3 (28. Nxb6 Rd8 $14) 28... Rxc3 29. Nxc3 Nxe5 (29... Rxc3 $2 30. Ra8+ Nf8 31. Nd7 $18) 30. dxe5 $18) 28. dxe5 {[%emt 0:00:02]} Rc6 $1 {[%emt 0:00:12]} (28... Nxc3 29. Rxc3 Rxc3 30. Nxc3 $18) 29. Ke2 {[%emt 0:01:12]} (29. h4 $17 {was worth a try.}) 29... f6 $19 {[%emt 0:03:57]} (29... Nxc3+ 30. Rxc3 Rxc3 31. Nxc3 $18) 30. f4 {[%emt 0:02:02]} (30. Kf1 {was necessary.}) 30... fxe5 $19 {[%emt 0:00:38]} (30... Nxc3+ 31. Nxc3 Rxc3 32. Rxc3 Rxc3 33. exf6 gxf6 34. Ra7 $17) 31. fxe5 {[%emt 0:00:02] [#]} Rf8 $2 {[%emt 0:06:25]} (31... Nxc3+ 32. Nxc3 Rxc3 33. Rxc3 Rxc3 34. Ra6 $15) (31... Nd4+ $1 $19 32. Ke1 Nb3) 32. Rf1 $17 {[%emt 0:03:03]} Rxf1 {[%emt 0:00:30]} (32... Nxc3+ 33. Nxc3 Rxc3 34. Ra6 Rxf1 35. Kxf1 $15) 33. Kxf1 {[%emt 0:00:11] [#]} Kf7 $1 {[%emt 0:01:29]} (33... Nxc3 34. Nxc3 (34. Rc1 d4 $15) 34... Rxc3 35. Ra6) 34. Ke2 {[%emt 0:03:09]} Nxc3+ {[%emt 0:00:39]} 35. Nxc3 {[%emt 0:00:01]} Rxc3 {[%emt 0:00:09]} 36. Ra6 {[%emt 0:00:32]} b5 {[%emt 0:04:07]} 37. Rb6 {[%emt 0:00:24]} Rc2+ {[%emt 0:00:29]} 38. Kf3 $2 {[%emt 0:00:23]} (38. Ke3 $17 {is a better defense.}) 38... Rxh2 $19 {[%emt 0:00:14]} 39. Rxb5 {[%emt 0:00:03]} h5 {[%emt 0:01:06]} 40. Rb6 {[%emt 0:02:09]} g5 {[%emt 0:02:01]} 41. b5 {[%emt 0:05:19]} g4+ $2 {[%emt 0:31:18]} ({Better is} 41... Rb2 $19 {White must now prevent ...Rb3+.} 42. Rb8 Kg6) 42. Kf4 $11 {[%emt 0:00:56]} Rf2+ {[%emt 0:00:11]} 43. Kg5 {[%emt 0:00:08]} Rf5+ {[%emt 0:00:06]} 44. Kh4 $1 {[%emt 0:02:17]} Rxe5 {[%emt 0:00:08]} 45. Rb8 $1 {[%emt 0:05:04]} d4 {[%emt 0:00:40]} 46. Rd8 {[%emt 0:17:58]} Rxb5 {[%emt 0:07:21]} 47. Rf8+ {[%emt 0:00:01]} Ke7 {[%emt 0:00:31]} 48. Re8+ $1 {[%emt 0:00:02]} Kd7 {[%emt 0:02:53]} 49. Rd8+ {[%emt 0:00:02]} Kc6 {[%emt 0:01:57]} 50. Rd6+ {[%emt 0:00:29]} Kc5 {[%emt 0:04:13]} (50... Kc7 $5 51. Rxd4 Rb3 $11) 51. Rc6+ $1 {[%emt 0:00:02]} Kb4 {[%emt 0:00:55]} (51... Kd5 $5 52. Rd6+ Kc5 (52... Ke5 53. Rxe6+ Kf5 54. Rf6+ Ke4 55. Rf4+ Kd5 56. Rxd4+ Ke6 57. Rf4 $11) 53. Rc6+ Kb4 (53... Kd5 54. Rd6+ Ke5 55. Rxe6+ Kd5 56. Rd6+ Ke5 57. Re6+ Kf5 58. Rf6+ Ke5 59. Re6+ $11) 54. Rc4+ Kb3 55. Rxd4 Re5 $11) 52. Rc4+ $1 {[%emt 0:00:02]} Kb3 {[%emt 0:00:21]} 53. Rxd4 {[%emt 0:00:56]} e5 {[%emt 0:00:10]} 54. Re4 {[%emt 0:00:12]} Kc3 {[%emt 0:00:11]} 55. Rxe5 {[%emt 0:00:07]} Rxe5 {[%emt 0:00:43]} 1/2-1/2

[Event "Icelandic Championship 2024"]
[Site "Mosfellsbaer"]
[Date "2024.04.24"]
[Round "8.3"]
[White "Kjartansson, Gudmundur"]
[Black "Heimisson, Hilmir Freyr"]
[Result "1-0"]
[ECO "D12"]
[WhiteElo "2480"]
[BlackElo "2361"]
[Annotator "TA"]
[PlyCount "149"]
[EventDate "2024.04.16"]
[EventType "tourn"]
[EventCountry "ISL"]
[SourceTitle "playchess.com"]
[Source "ChessBase"]
[SourceQuality "1"]
[TimeControl "40/5400+30:1800+30"]

{[%evp 63,149,25,21,62,102,0,0,8,62,0,0,0,0,0,0,0,0,0,0,0,14,0,11,12,3,2,1,0,15,0,0,0,8,0,0,0,0,0,0,0,0,0,0,0,0,0,0,0,0,0,0,0,0,0,0,0,0,0,0,0,0,0,8,8,8,8,8,8,8,0,29963,29965,29965,29966,29966,29967,29967,29969,29969,29970,29970,29971,29972,29973,29974,29975,29978,29980]} 1. d4 {[%emt 0:00:03]} Nf6 {[%emt 0:01:16]} 2. c4 {[%emt 0:00:09]} c6 {[%emt 0:00:10]} 3. Nc3 {[%emt 0:00:34]} d5 {[%emt 0:00:11]} 4. e3 {[%emt 0:00:14]} Bf5 {[%emt 0:00:10]} 5. Nf3 {[%emt 0:00:07]} e6 {[%emt 0:00:36]} 6. Nh4 {[%emt 0:00:21]} Be4 {[%emt 0:01:59]} 7. f3 {[%emt 0:00:08]} Bg6 {[%emt 0:00:09]} 8. Qb3 {[%emt 0:02:26]} Qc7 {[%emt 0:00:13]} 9. Nxg6 {[%emt 0:00:37] D12: Slav Defence: 3 Nf3 Nf6 4 e3 Bf5.} hxg6 {[%emt 0:00:13]} 10. Bd2 {[%emt 0:00:56]} a5 {[%emt 0:02:56]} 11. cxd5 {[%emt 0:02:45]} Nxd5 {[%emt 0:00:55]} 12. e4 {[%emt 0:12:33]} Nxc3 {[%emt 0:00:10]} 13. bxc3 {[%emt 0:00:13]} b5 {[%emt 0:00:11]} 14. g3 $146 {[%emt 0:08:35]} ({Predecessor:} 14. c4 bxc4 15. Bxc4 Nd7 16. g3 Rb8 17. Qd3 Bb4 18. Bxb4 Rxb4 19. Qc3 Qb6 20. Rd1 {1-0 Stearman,J (2451)-Korley,K (2457) New York 1000 GM Fall GM-A 2023 (1)}) 14... Nd7 {[%emt 0:00:38]} 15. Kf2 {[%emt 0:02:17]} Be7 {[%emt 0:03:04]} 16. Be2 {[%emt 0:05:50]} g5 {[%emt 0:08:07]} 17. Kg2 {[%emt 0:01:56]} O-O {[%emt 0:12:45]} 18. Qb2 {[%emt 0:16:01]} Rfb8 {[%emt 0:01:41]} 19. Be3 {[%emt 0:07:19]} Qd8 {[%emt 0:07:03]} 20. Rac1 {[%emt 0:03:35]} Nb6 {[%emt 0:02:08]} 21. Rhd1 {[%emt 0:01:58]} Ra7 {[%emt 0:08:07]} 22. Qd2 {[%emt 0:01:29]} Rd7 {[%emt 0:01:33]} 23. Bd3 {[%emt 0:01:37]} Rbb7 {[%emt 0:09:42]} 24. Kh1 {[%emt 0:04:20]} a4 {[%emt 0:09:33]} 25. f4 {[%emt 0:01:39]} Nc4 {[%emt 0:05:52]} 26. Bxc4 {[%emt 0:01:21]} bxc4 {[%emt 0:01:08]} 27. fxg5 {[%emt 0:02:14]} Rb5 {[%emt 0:00:28]} 28. h4 {[%emt 0:01:48]} Qb8 {[%emt 0:01:27]} 29. Kh2 {[%emt 0:02:37]} Rb2 {[%emt 0:02:12]} 30. Rc2 {[%emt 0:00:04]} Rdb7 {[%emt 0:00:18]} 31. Rdc1 {[%emt 0:01:06]} a3 {[%emt 0:00:46]} 32. Qe2 {[%emt 0:01:25]} Rxc2 {[%emt 0:15:24]} 33. Rxc2 {[%emt 0:00:03]} (33. Qxc2 $2 Rb2 34. g6 Rxc2+ $19 (34... fxg6 $2 35. Bg1 $19)) 33... Rb1 {[%emt 0:00:07]} 34. g6 {[%emt 0:08:21]} (34. Qxc4 $6 Re1 35. Qd3 Qb1 $11) ({Better is} 34. Bc1 $16) 34... fxg6 $11 {[%emt 0:05:14]} 35. Qxc4 {[%emt 0:00:37]} Kh7 {[%emt 0:00:27]} (35... Re1 $11 36. Bf2 (36. Qxe6+ Kh7 $11) 36... Ra1 37. Qxe6+ (37. Qxc6 $2 Qb1 $19) 37... Kh7) 36. Qxe6 {[%emt 0:01:26]} (36. Qxc6 $2 Re1 37. Bf2 (37. Qxe6 $2 Rxe3 38. Rg2 Qf8 $19) 37... Qb1 $19) ({White should play} 36. Qe2 $14) 36... Qb5 $11 {[%emt 0:00:56]} 37. c4 {[%emt 0:03:40]} (37. Rf2 $5 Qd3 $8 38. h5 (38. Qxe7 Qxe3 39. Qf7 Rb2 $15) 38... Qxe3 39. Qxg6+ Kh8 40. Qe8+ Kh7 41. Qg6+ Kh8 42. Qe8+ Kh7 43. Qg6+ $11) 37... Qh5 {[%emt 0:00:35]} 38. Rg2 {[%emt 0:06:08]} Qf3 {[%emt 0:00:27]} (38... Qd1 39. Rg1 Rb2+ 40. Kh3) 39. Qxe7 {[%emt 0:00:50]} Qxe3 {[%emt 0:00:22]} 40. h5 $1 {[%emt 0:00:25]} Qh6 {[%emt 0:00:42]} (40... Qxd4 41. hxg6+ Kh6 42. Qh4+ (42. Qxa3 Qxe4 43. Qc3 Rd1 $11) 42... Kxg6 43. Qg4+ Kf7 44. Qh5+ Ke7 45. e5) 41. Qe6 {[%emt 0:13:21]} (41. Qxa3 $2 Qxh5#) 41... Qxh5+ {[%emt 0:12:05]} (41... gxh5 {simplifies} 42. Qxh6+ Kxh6 43. d5 cxd5 44. exd5 Rc1) 42. Qh3 {[%emt 0:00:07]} Rb4 {[%emt 0:00:27]} ({Don't go for} 42... Rh1+ $2 43. Kxh1 Qxh3+ 44. Rh2 $18) 43. g4 {[%emt 0:09:11]} (43. Qxh5+ gxh5 44. Kh3 Rxc4) 43... Qxh3+ {[%emt 0:00:57]} 44. Kxh3 {[%emt 0:00:03]} Rxc4 {[%emt 0:00:14]} 45. Rd2 {[%emt 0:06:15]} c5 {[%emt 0:03:28]} 46. dxc5 {[%emt 0:00:41]} Rxc5 {[%emt 0:00:09]} 47. Rd3 {[%emt 0:00:32]} Re5 {[%emt 0:02:40]} 48. Re3 {[%emt 0:00:11]} g5 {[%emt 0:00:21]} 49. Kg3 {[%emt 0:00:10]} Kg6 {[%emt 0:00:11]} 50. Kf3 {[%emt 0:00:32]} Ra5 {[%emt 0:00:06]} 51. Rb3 {[%emt 0:03:56]} Ra6 {[%emt 0:01:33]} 52. Ke3 {[%emt 0:00:11]} Kf6 {[%emt 0:01:45]} 53. Rc3 {[%emt 0:00:19]} g6 {[%emt 0:08:22]} 54. Rc4 {[%emt 0:01:06]} Ra8 {[%emt 0:01:02]} 55. Rc6+ {[%emt 0:00:03]} Kf7 {[%emt 0:00:06]} 56. Rc7+ {[%emt 0:00:29]} Kf6 {[%emt 0:00:10]} 57. Rc6+ {[%emt 0:00:02]} Kf7 {[%emt 0:00:02]} 58. Rb6 {[%emt 0:00:37]} Rh8 {[%emt 0:01:57]} 59. Kd4 {[%emt 0:01:44]} Rh2 {[%emt 0:01:02]} 60. Ke5 {[%emt 0:00:14]} Rxa2 {[%emt 0:00:07]} 61. Rb7+ {[%emt 0:00:03]} Kf8 {[%emt 0:00:50]} 62. Ra7 {[%emt 0:00:16]} Rg2 {[%emt 0:02:24]} 63. Kf6 {[%emt 0:00:16]} Ke8 {[%emt 0:00:48]} 64. Kxg5 {[%emt 0:01:12]} a2 {[%emt 0:00:23]} (64... Re2 {simplifies} 65. Rxa3 Rxe4 66. Ra6 Kf7) 65. e5 {[%emt 0:00:20]} Kd8 {[%emt 0:01:05]} 66. e6 {[%emt 0:00:31]} a1=Q $4 {[%emt 0:00:48][%mdl 8192]} (66... Ke8 $11) 67. Rxa1 {[%emt 0:00:03]} Ke7 {[%emt 0:00:05]} 68. Ra4 {[%emt 0:01:11]} ({Worse is} 68. Kxg6 Rxg4+ 69. Kf5 Rg2 $11) 68... Re2 {[%emt 0:00:32]} 69. Ra7+ {[%emt 0:00:23]} Kxe6 {[%emt 0:00:39]} 70. Kxg6 {[%emt 0:00:05]} Rg2 {[%emt 0:00:31]} 71. g5 {[%emt 0:00:05]} Rg1 {[%emt 0:00:23]} 72. Kh6 {[%emt 0:00:45]} Rh1+ {[%emt 0:00:30]} 73. Kg7 {[%emt 0:00:08]} Kf5 {[%emt 0:00:37]} 74. g6 {[%emt 0:00:06]} Rg1 {[%emt 0:00:15]} 75. Kf7 {[%emt 0:00:36]} 1-0

[Event "Icelandic Championship 2024"]
[Site "Mosfellsbaer"]
[Date "2024.04.24"]
[Round "8.4"]
[White "Stefansson, Vignir Vatnar"]
[Black "Prudnykova, Olga"]
[Result "1-0"]
[ECO "D90"]
[WhiteElo "2459"]
[BlackElo "2263"]
[Annotator "TA"]
[PlyCount "57"]
[EventDate "2024.04.16"]
[EventType "tourn"]
[EventCountry "ISL"]
[SourceTitle "playchess.com"]
[Source "ChessBase"]
[SourceQuality "1"]
[TimeControl "40/5400+30:1800+30"]

{[%evp 12,57,28,12,17,-10,-5,0,-12,4,-3,0,37,36,37,37,73,63,62,57,74,16,27,19,35,0,0,-9,56,44,130,129,125,71,72,82,168,123,854,865,1243,1243,1091,1039,29991,29992,29992,29993]} 1. Nf3 {[%emt 0:03:19]} Nf6 {[%emt 0:00:05][%cal Bg8f6,Bf6d5,Bd5b6][%mdl 32]} 2. c4 {[%emt 0:00:45]} g6 {[%emt 0:01:16]} 3. Nc3 {[%emt 0:00:08]} d5 {[%emt 0:00:04]} 4. cxd5 {[%emt 0:00:03]} Nxd5 {[%emt 0:00:02]} 5. Qb3 {[%emt 0:00:06]} Nb6 {[%emt 0:00:29]} 6. d4 {[%emt 0:00:07]} Bg7 {[%emt 0:00:32]} 7. e4 {[%emt 0:00:05]} Bg4 {[%emt 0:01:19][%cal Og4f3]} 8. Bb5+ {[%emt 0:00:10]} c6 {[%emt 0:02:12][%cal Og4f3] [#] ...Bxf3! would now be deadly.} 9. Ng5 {[%emt 0:00:16]} O-O {[%emt 0:01:30] The position is equal.} 10. Be2 {[%emt 0:00:05]} Bxe2 {[%emt 0:02:12]} 11. Nxe2 {[%emt 0:00:10]} h6 {[%emt 0:06:53]} 12. Nf3 {[%emt 0:04:16]} N8d7 {[%emt 0:00:46][%cal Bb8d7,Bd7f6,Bf6g4][%mdl 32]} 13. a4 {[%emt 0:01:01]} a5 {[%emt 0:01:46]} 14. Be3 {[%emt 0:01:31]} Nf6 {[%emt 0:01:36]} 15. Qc2 {[%emt 0:13:38]} Ng4 {[%emt 0:06:40]} 16. Bf4 {[%emt 0:01:55]} (16. Bc1 $16) 16... e5 $1 $11 {[%emt 0:01:07]} 17. Nxe5 {[%emt 0:06:38]} Nxe5 {[%emt 0:00:19]} 18. Bxe5 {[%emt 0:00:08]} Bxe5 {[%emt 0:00:29]} 19. dxe5 {[%emt 0:00:05]} Qg5 {[%emt 0:05:34]} (19... Qe7 $1 $11) 20. e6 $1 $14 {[%emt 0:10:47]} Qxg2 {[%emt 0:07:30]} (20... fxe6 $14 21. O-O Nd7) 21. Rg1 $36 {[%emt 0:02:40][%mdl 2048] White is on the roll.} Qxh2 {[%emt 0:03:41] [#]} 22. Qb3 {[%emt 0:14:49]} (22. Qc5 $142 $1 {[%cal Rc5b6]} Qh4 (22... Qc7 23. Ra3 $18) 23. Qxb6 Qxe4 24. Qe3 (24. Qxb7 Qxe6 25. Rg3 Rab8 $11) 24... Qxe3 25. fxe3) 22... Qc7 {[%emt 0:08:51]} 23. O-O-O {[%emt 0:08:17][%cal Oe6e7] Threatens to win with e7! White is more active.} Rad8 {[%emt 0:12:53]} (23... Kh7 $16) 24. Rxd8 $18 {[%emt 0:04:23]} Qxd8 $4 {[%emt 0:05:43][%mdl 8192] A mistake that costs the game.} (24... Rxd8 $16 25. f4 Kh7) 25. exf7+ {[%emt 0:01:44]} Rxf7 {[%emt 0:04:06]} 26. Rxg6+ {[%emt 0:00:06]} Kf8 {[%emt 0:00:01]} 27. Qg3 {[%emt 0:00:44] aiming for Rg8+.} ({Inferior is} 27. Rxh6 Qg5+ 28. Qe3 Qxe3+ 29. fxe3 Nxa4 $11) 27... Qc7 {[%emt 0:02:58]} 28. Rg8+ {[%emt 0:00:36]} ({Weaker is} 28. Rxh6 Qxg3 29. Nxg3 Rxf2 $11) 28... Ke7 {[%emt 0:00:02]} 29. Qxc7+ {[%emt 0:00:06] Weighted Error Value: White=0.14 (very precise) /Black=0.57.  Loses game:     	---       	Black=1      Mistake:       	White=2     	Black=3      Inaccurate:     	White=2     	Black=3      OK:         	White=6     	Black=6      Best:        	White=4     	Black=1      Strong:       	White=1     	Black=1} 1-0

[Event "Icelandic Championship 2024"]
[Site "Mosfellsbaer"]
[Date "2024.04.24"]
[Round "8.5"]
[White "Birkisson, Bardur Orn"]
[Black "Gretarsson, Hjorvar Steinn"]
[Result "0-1"]
[ECO "B42"]
[WhiteElo "2169"]
[BlackElo "2518"]
[Annotator "TA"]
[PlyCount "82"]
[EventDate "2024.04.16"]
[EventType "tourn"]
[EventCountry "ISL"]
[SourceTitle "playchess.com"]
[Source "ChessBase"]
[SourceQuality "1"]
[TimeControl "40/5400+30:1800+30"]

{[%evp 16,82,0,-16,-19,-14,-16,0,16,-13,0,-23,-25,-28,-38,-55,-14,-25,0,-42,-22,-29,-27,-26,-22,-32,-32,-31,-35,-41,-37,-41,-39,-36,-33,-41,-37,-45,-29,-102,-41,-41,-36,-159,-160,-263,-258,-249,-220,-276,-252,-489,-483,-632,-595,-612,-262,-744,-750,-758,-718,-1328,-774,-870,-776,-29992,-29993,-29993,-29994]} 1. e4 {[%emt 0:00:10]} c5 {[%emt 0:00:17]} 2. Nf3 {[%emt 0:00:20]} e6 {[%emt 0:00:31]} 3. d4 {[%emt 0:00:51]} cxd4 {[%emt 0:00:07]} 4. Nxd4 {[%emt 0:00:09]} Nf6 {[%emt 0:01:16]} 5. Nc3 {[%emt 0:01:04]} d6 {[%emt 0:00:53]} 6. Be3 {[%emt 0:08:43]} a6 {[%emt 0:00:54]} 7. a3 {[%emt 0:07:05]} b5 {[%emt 0:03:25]} 8. Bd3 {[%emt 0:03:52]} Bb7 {[%emt 0:03:55]} 9. O-O {[%emt 0:01:28]} Nbd7 {[%emt 0:01:28]} 10. f4 {[%emt 0:01:39]} Be7 {[%emt 0:01:12]} 11. Qf3 {[%emt 0:04:57]} Nc5 {[%emt 0:05:57] The position is equal.} 12. Rae1 {[%emt 0:06:20]} O-O {[%emt 0:07:05]} 13. Kh1 {[%emt 0:07:39]} Re8 {[%emt 0:05:47]} 14. Bd2 {[%emt 0:22:58]} Rc8 {[%emt 0:03:19]} 15. b4 {[%emt 0:09:53]} Nxd3 {[%emt 0:01:32]} (15... Qb6 $5) 16. cxd3 {[%emt 0:00:16]} Nd7 {[%emt 0:05:52]} 17. Nb3 {[%emt 0:02:41]} Rc7 {[%emt 0:06:37]} 18. Qe3 {[%emt 0:08:43]} Bf6 {[%emt 0:01:59]} 19. Rc1 {[%emt 0:02:33]} Qb8 {[%emt 0:02:39]} 20. Na5 {[%emt 0:03:48]} Ba8 {[%emt 0:00:49]} 21. Ne2 {[%emt 0:04:10]} Rec8 {[%emt 0:00:16]} 22. Rxc7 {[%emt 0:00:40]} Rxc7 {[%emt 0:00:07]} 23. Rc1 {[%emt 0:00:59]} Rxc1+ {[%emt 0:02:40]} 24. Bxc1 {[%emt 0:00:18]} Qc7 {[%emt 0:03:39]} 25. Qd2 {[%emt 0:00:05]} e5 {[%emt 0:01:19]} 26. Bb2 {[%emt 0:00:54]} d5 {[%emt 0:03:09]} 27. exd5 {[%emt 0:00:10]} (27. d4 $1 $11 exf4 (27... dxe4 28. dxe5 Be7 29. Bd4 $11) 28. e5) 27... exf4 {[%emt 0:02:43]} (27... Bxd5 $17 28. fxe5 Nxe5) 28. Bxf6 $15 {[%emt 0:00:28]} Nxf6 {[%emt 0:00:14]} 29. Nxf4 {[%emt 0:01:27]} (29. Qxf4 $15 Qxf4 30. Nxf4 Nxd5 31. Ne2) 29... Nxd5 $17 {[%emt 0:00:54] Black is more active.} ({Much less strong is} 29... Bxd5 30. Nxd5 Nxd5 31. Qe1 $11) 30. Nxd5 {[%emt 0:00:25]} (30. Nh3 $17) 30... Bxd5 $11 {[%emt 0:00:07][%mdl 4096] Endgame. KQB-KQN} 31. Kg1 {[%emt 0:00:37]} Qe5 {[%emt 0:00:46] Repels Qg5} 32. d4 {[%emt 0:00:32]} Qe4 {[%emt 0:00:14]} 33. h3 $2 {[%emt 0:00:12] [#]} (33. h4) 33... h5 $19 {[%emt 0:01:17]} 34. Kh2 {[%emt 0:00:45]} h4 {[%emt 0:00:14]} 35. Qf2 {[%emt 0:00:12]} g5 {[%emt 0:01:00]} (35... f6 $142 36. Kg1 Kf7) 36. Qb2 $2 {[%emt 0:00:47]} (36. Qf3) 36... Qd3 {[%emt 0:02:19]} 37. Qf2 {[%emt 0:00:34] Repels Qg3+} Kg7 {[%emt 0:00:27]} 38. Qb2 {[%emt 0:00:31]} Kg6 {[%emt 0:00:32]} 39. Kg1 {[%emt 0:00:24]} f5 {[%emt 0:01:04]} 40. Kh2 {[%emt 0:00:20]} g4 {[%emt 0:01:31]} 41. hxg4 {[%emt 0:02:48]} fxg4 {[%emt 0:00:17] Weighted Error Value: White=0.78/Black=0.40.  Mistake:       	White=5     	Black=1      Inaccurate:     	White=3     	Black=1      OK:         	White=4     	Black=9      Best:        	White=1     	Black=1} 0-1